{"text_format":"1","workbook":"xlsx","n_sheets":1,"sheets":["Sheet1"],"not_rendered":{"charts":0,"images":0,"macros":1,"external_links":0,"defined_names":3,"comments":0,"pivot_tables":0},"unopened":[],"bounds":{"document_bytes":16777216,"sheet_cells":100000,"rows_first":2000,"rows_last":500,"rows_between":2000,"halvings":0,"cell_chars":16384,"cell_head_chars":4096},"cells_cut":0,"cells_raw":0,"read":"whole","date_system":"1900"}

{"sheet":"Sheet1","index":0,"n_rows":30,"n_cols":11,"rows_kept":30,"cut":false,"hidden":false,"merged":[]}
["기초방89","  상품명을 결과처럼 수정하시오"]
[]
[]
[null,"상품명",null,"찾을내용","바꿀내용",null,"365-1",null,"365-2",null,"vba"]
[null,"옵션선택=엠디추천칠색바다(직송)",null,"옵션선택",null,null,{"$f":"_xlfn.LET(_xlpm._s,B5:B30,\n_xlfn.REDUCE(_xlpm._s,$D$5:$D$24,\n_xlfn.LAMBDA(_xlpm._t,_xlpm._old,SUBSTITUTE(_xlpm._t,_xlpm._old, OFFSET(_xlpm._old,0,1)))))","v":"칠색바다"},null,{"$f":"_xlfn.TEXTSPLIT((B5:B30),(D5:D14),\";\",TRUE)","v":"칠색바다"},null,{"$f":"_xlfn.TEXTSPLIT({\"옵션선택=엠디추천칠색바다(직송)\";\"옵션선택=맞춤 구두\";\"[특가할인]옵션선택=이쁜치마\";\"옵션선택=간지정장(직송)색상선택\";\"선택장애해결 패딩(직송)\";\"옵션선택=칠색바다\";\"옵션선택=맞춤 구두\";\"[특가할인]옵션선택=이쁜치마\";\"옵션선택=턱시도\";\"옵션선택=5종세트\";\"옵션선택=칠색바다\";\"옵션선택=운동복\";\"[특가할인]옵션선택=이쁜치마\";\"옵션선택=간지정장(직송)색상선택\";\"[특가할인]=폴라티\";\"옵션선택:칠색바다\";\"옵션선택=맞춤 구두\";\"[특가할인]옵션선택=이쁜치마\";\"미친 컬러 간지정장(직송)색상선택\";\"내 맘쏙 :패딩\";\"옵션선택=오색바다\";\"옵션선택=맞춤 구두\";\"[특가할인]옵션선택=이쁜치마\";\"옵션선택=간지정장(직송)색상선택\";\"MD추천=여성신발\";\"엠디추천=남성신발\"},{\"옵션선택\",\"=\",\"[특가할인]\",\"색상선택\",\"(직송)\",\"엠디추천\",\"MD추천\",\"미친 컬러 \",\"내 맘쏙 \",\":\"},\";\",TRUE)","v":"칠색바다"}]
[null,"옵션선택=맞춤 구두",null,"=",null,null,"맞춤 구두",null,"맞춤 구두",null,"맞춤 구두"]
[null,"[특가할인]옵션선택=이쁜치마",null,"[특가할인]",null,null,"이쁜치마",null,"이쁜치마",null,"이쁜치마"]
[null,"옵션선택=간지정장(직송)색상선택",null,"색상선택",null,null,"간지정장",null,"간지정장",null,"간지정장"]
[null,"선택장애해결 패딩(직송)",null,"(직송)",null,null,"선택장애해결 패딩",null,"선택장애해결 패딩",null,"선택장애해결 패딩"]
[null,"옵션선택=칠색바다",null,"엠디추천",null,null,"칠색바다",null,"칠색바다",null,"칠색바다"]
[null,"옵션선택=맞춤 구두",null,"MD추천",null,null,"맞춤 구두",null,"맞춤 구두",null,"맞춤 구두"]
[null,"[특가할인]옵션선택=이쁜치마",null,"미친 컬러 ",null,null,"이쁜치마",null,"이쁜치마",null,"이쁜치마"]
[null,"옵션선택=턱시도",null,"내 맘쏙 ",null,null,"턱시도",null,"턱시도",null,"턱시도"]
[null,"옵션선택=5종세트",null,":",null,null,"5종세트",null,"5종세트",null,"5종세트"]
[null,"옵션선택=칠색바다",null,null,null,null,"칠색바다",null,"칠색바다",null,"칠색바다"]
[null,"옵션선택=운동복",null,null,null,null,"운동복",null,"운동복",null,"운동복"]
[null,"[특가할인]옵션선택=이쁜치마",null,null,null,null,"이쁜치마",null,"이쁜치마",null,"이쁜치마"]
[null,"옵션선택=간지정장(직송)색상선택",null,null,null,null,"간지정장",null,"간지정장",null,"간지정장"]
[null,"[특가할인]=폴라티",null,null,null,null,"폴라티",null,"폴라티",null,"폴라티"]
[null,"옵션선택:칠색바다",null,null,null,null,"칠색바다",null,"칠색바다",null,"칠색바다"]
[null,"옵션선택=맞춤 구두",null,null,null,null,"맞춤 구두",null,"맞춤 구두",null,"맞춤 구두"]
[null,"[특가할인]옵션선택=이쁜치마",null,null,null,null,"이쁜치마",null,"이쁜치마",null,"이쁜치마"]
[null,"미친 컬러 간지정장(직송)색상선택",null,null,null,null,"간지정장",null,"간지정장",null,"간지정장"]
[null,"내 맘쏙 :패딩",null,null,null,null,"패딩",null,"패딩",null,"패딩"]
[null,"옵션선택=오색바다",null,null,null,null,"오색바다",null,"오색바다",null,"오색바다"]
[null,"옵션선택=맞춤 구두",null,null,null,null,"맞춤 구두",null,"맞춤 구두",null,"맞춤 구두"]
[null,"[특가할인]옵션선택=이쁜치마",null,null,null,null,"이쁜치마",null,"이쁜치마",null,"이쁜치마"]
[null,"옵션선택=간지정장(직송)색상선택",null,null,null,null,"간지정장",null,"간지정장",null,"간지정장"]
[null,"MD추천=여성신발",null,null,null,null,"여성신발",null,"여성신발",null,"여성신발"]
[null,"엠디추천=남성신발",null,null,null,null,"남성신발",null,"남성신발",null,"남성신발"]